[Event "*** Titled Tuesday Blitz"]
[Site "Chess.com"]
[Date "2020.05.12"]
[Round "3"]
[White "alexwinter25"]
[Black "EnergeticHay"]
[Result "1-0"]
[WhiteElo "2359"]
[BlackElo "2146"]
[TimeControl "180+1"]
[EndTime "10:28:28 PDT"]
[Termination "alexwinter25 won by resignation"]

1. e4 {[%clk 0:03:00.9]} 1... c5 {[%clk 0:02:59.8]} 2. Nf3 {[%clk 0:03:00.2]}
2... d6 {[%clk 0:03:00.3]} 3. d4 {[%clk 0:03:00.4]} 3... cxd4 {[%clk 0:03:01.2]}
4. c3 {[%clk 0:03:00.9]} 4... Nf6 {[%clk 0:03:02]} 5. Bd3 {[%clk 0:03:00.9]}
5... dxc3 {[%clk 0:03:01.9]} 6. Nxc3 {[%clk 0:03:01.8]} 6... Nc6 {[%clk
0:03:02.2]} 7. h3 {[%clk 0:03:00.1]} 7... e6 {[%clk 0:02:59.6]} 8. O-O {[%clk
0:03:00.3]} 8... Be7 {[%clk 0:02:59.7]} 9. Qe2 {[%clk 0:03:01.2]} 9... O-O
{[%clk 0:02:57.5]} 10. Rd1 {[%clk 0:03:01.8]} 10... a6 {[%clk 0:02:55.8]} 11. e5
{[%clk 0:03:01.8]} 11... Ne8 {[%clk 0:02:48.6]} 12. exd6 {[%clk 0:03:01.9]}
12... Bxd6 {[%clk 0:02:44.7]} 13. Ne4 {[%clk 0:02:57.7]} 13... Qe7 {[%clk
0:02:37.6]} 14. Bg5 {[%clk 0:02:47.6]} 14... f6 {[%clk 0:02:29]} 15. Nxd6 {[%clk
0:02:42.1]} 15... Nxd6 {[%clk 0:02:29.9]} 16. Bf4 {[%clk 0:02:31.7]} 16... e5
{[%clk 0:02:28.7]} 17. Bg3 {[%clk 0:02:31.7]} 17... Bf5 {[%clk 0:02:24]} 18.
Bc4+ {[%clk 0:02:13.8]} 18... Nxc4 {[%clk 0:02:20.9]} 19. Qxc4+ {[%clk
0:02:14.7]} 19... Be6 {[%clk 0:02:21.2]} 20. Qe2 {[%clk 0:02:10.6]} 20... Rfd8
{[%clk 0:02:18.1]} 21. h4 {[%clk 0:02:03.3]} 21... Rxd1+ {[%clk 0:02:06.7]} 22.
Qxd1 {[%clk 0:02:03]} 22... Rd8 {[%clk 0:02:07.6]} 23. Qa4 {[%clk 0:02:00.6]}
23... Qb4 {[%clk 0:02:02.3]} 24. Qc2 {[%clk 0:01:56]} 24... Bg4 {[%clk
0:01:52.1]} 25. a3 {[%clk 0:01:50.3]} 25... Qd6 {[%clk 0:01:42]} 26. Qb3+ {[%clk
0:01:43.1]} 26... Qd5 {[%clk 0:01:09.9]} 27. Qxb7 {[%clk 0:01:30.4]} 27... Bxf3
{[%clk 0:01:09.4]} 28. gxf3 {[%clk 0:01:31]} 28... Qxf3 {[%clk 0:01:02.2]} 29.
Rc1 {[%clk 0:00:59.3]} 29... Nd4 {[%clk 0:00:58.4]} 30. Qxf3 {[%clk 0:00:53.7]}
30... Nxf3+ {[%clk 0:00:59.3]} 31. Kg2 {[%clk 0:00:54.2]} 31... Nd4 {[%clk
0:00:54.6]} 32. Rc7 {[%clk 0:00:51]} 32... Kf8 {[%clk 0:00:45.9]} 33. b4 {[%clk
0:00:50.6]} 33... Re8 {[%clk 0:00:37.6]} 34. Ra7 {[%clk 0:00:49.2]} 34... Re6
{[%clk 0:00:35.6]} 35. f3 {[%clk 0:00:41.7]} 35... Nc2 {[%clk 0:00:33.9]} 36.
Ra8+ {[%clk 0:00:28.3]} 36... Kf7 {[%clk 0:00:31.8]} 37. h5 {[%clk 0:00:18.1]}
37... Nxa3 {[%clk 0:00:27.1]} 38. Bf2 {[%clk 0:00:18.3]} 38... Nc2 {[%clk
0:00:24.6]} 39. Bc5 {[%clk 0:00:15.5]} 39... Ne1+ {[%clk 0:00:20.6]} 40. Kg3
{[%clk 0:00:13.3]} 40... Nd3 {[%clk 0:00:21.5]} 41. Ra7+ {[%clk 0:00:13.1]}
41... Kg8 {[%clk 0:00:19.3]} 42. Ra8+ {[%clk 0:00:11.2]} 42... Re8 {[%clk
0:00:17.2]} 43. Rxe8+ {[%clk 0:00:10]} 43... Kf7 {[%clk 0:00:18.1]} 44. Re7+
{[%clk 0:00:10.5]} 44... Kf8 {[%clk 0:00:18.3]} 45. Ra7+ {[%clk 0:00:10.6]}
45... Ke8 {[%clk 0:00:17.9]} 46. Rxg7 {[%clk 0:00:09.2]} 1-0

[Event "*** Titled Tuesday Blitz"]
[Site "Chess.com"]
[Date "2020.05.12"]
[Round "3"]
[White "Shubinkirill2003"]
[Black "VALPARAISO37"]
[Result "1-0"]
[WhiteElo "2585"]
[BlackElo "2388"]
[TimeControl "180+1"]
[EndTime "10:28:29 PDT"]
[Termination "Shubinkirill2003 won on time"]

1. e4 {[%clk 0:03:00.9]} 1... e5 {[%clk 0:02:59.1]} 2. Nf3 {[%clk 0:02:59.4]}
2... Nc6 {[%clk 0:02:59.3]} 3. Bb5 {[%clk 0:02:57.6]} 3... a6 {[%clk 0:02:58.6]}
4. Ba4 {[%clk 0:02:57.6]} 4... Nf6 {[%clk 0:02:57.9]} 5. O-O {[%clk 0:02:55.9]}
5... b5 {[%clk 0:02:56.9]} 6. Bb3 {[%clk 0:02:55]} 6... Bc5 {[%clk 0:02:57.4]}
7. c3 {[%clk 0:02:55]} 7... d6 {[%clk 0:02:57.3]} 8. d4 {[%clk 0:02:53.8]} 8...
Bb6 {[%clk 0:02:57.5]} 9. a4 {[%clk 0:02:53.1]} 9... Rb8 {[%clk 0:02:56.5]} 10.
a5 {[%clk 0:02:53.1]} 10... Ba7 {[%clk 0:02:56]} 11. h3 {[%clk 0:02:52.1]} 11...
O-O {[%clk 0:02:54.2]} 12. Be3 {[%clk 0:02:51.7]} 12... Re8 {[%clk 0:02:49.9]}
13. Nbd2 {[%clk 0:02:48.1]} 13... exd4 {[%clk 0:02:26.9]} 14. cxd4 {[%clk
0:02:49]} 14... h6 {[%clk 0:02:14.1]} 15. Qc2 {[%clk 0:02:39.5]} 15... Nb4
{[%clk 0:02:04.6]} 16. Qc3 {[%clk 0:02:37.7]} 16... c5 {[%clk 0:02:03]} 17. dxc5
{[%clk 0:02:38.6]} 17... dxc5 {[%clk 0:02:02.5]} 18. Bxc5 {[%clk 0:02:38.4]}
18... Bxc5 {[%clk 0:02:01.7]} 19. Qxc5 {[%clk 0:02:39.3]} 19... Nd3 {[%clk
0:02:00.1]} 20. Qc3 {[%clk 0:02:32.5]} 20... Nf4 {[%clk 0:01:58]} 21. Qe3 {[%clk
0:02:26.1]} 21... Nd3 {[%clk 0:01:55.8]} 22. e5 {[%clk 0:02:12.4]} 22... Bb7
{[%clk 0:01:45.8]} 23. Rab1 {[%clk 0:01:52.1]} 23... Nh5 {[%clk 0:01:42.4]} 24.
Rfd1 {[%clk 0:01:41.3]} 24... Nhf4 {[%clk 0:01:40.1]} 25. Ne4 {[%clk 0:01:34.2]}
25... Rc8 {[%clk 0:01:06]} 26. Nd6 {[%clk 0:01:20.6]} 26... Bxf3 {[%clk
0:01:03.9]} 27. Qxf3 {[%clk 0:01:15.6]} 27... Qg5 {[%clk 0:00:41.9]} 28. Nxf7
{[%clk 0:01:12.7]} 28... Qg6 {[%clk 0:00:41.7]} 29. Nd6+ {[%clk 0:01:04.8]}
29... Kh7 {[%clk 0:00:41.9]} 30. Nxe8 {[%clk 0:00:58.8]} 30... Rxe8 {[%clk
0:00:41.1]} 31. Bc2 {[%clk 0:00:57.9]} 31... Rd8 {[%clk 0:00:40.8]} 32. e6
{[%clk 0:00:52.9]} 32... Kh8 {[%clk 0:00:33.9]} 33. e7 {[%clk 0:00:51.5]} 33...
Re8 {[%clk 0:00:32.7]} 34. Bxd3 {[%clk 0:00:51.1]} 34... Nxd3 {[%clk 0:00:30.8]}
35. Qxd3 {[%clk 0:00:51.4]} 35... Qf6 {[%clk 0:00:28.9]} 36. Qd8 {[%clk
0:00:45.5]} 36... Qxe7 {[%clk 0:00:23]} 37. Qxe7 {[%clk 0:00:44.9]} 37... Rxe7
{[%clk 0:00:23.8]} 38. Rd6 {[%clk 0:00:45.4]} 38... Re4 {[%clk 0:00:20.7]} 39.
Rxa6 {[%clk 0:00:45.2]} 39... Ra4 {[%clk 0:00:20.4]} 40. b4 {[%clk 0:00:45.2]}
40... Ra2 {[%clk 0:00:19.3]} 41. Rb6 {[%clk 0:00:44.9]} 41... Rb2 {[%clk
0:00:20.1]} 42. Rxb2 {[%clk 0:00:44.6]} 42... h5 {[%clk 0:00:19.4]} 43. Rxb5
{[%clk 0:00:44.2]} 43... g5 {[%clk 0:00:19.3]} 44. a6 {[%clk 0:00:45.1]} 44...
g4 {[%clk 0:00:19.1]} 45. a7 {[%clk 0:00:46]} 45... h4 {[%clk 0:00:19.7]} 46.
a8=Q+ {[%clk 0:00:46.9]} 46... Kh7 {[%clk 0:00:19.7]} 47. Qc6 {[%clk 0:00:46.9]}
1-0

[Event "*** Titled Tuesday Blitz"]
[Site "Chess.com"]
[Date "2020.05.12"]
[Round "3"]
[White "1Przemyslaw1"]
[Black "bazar-wokzal"]
[Result "0-1"]
[WhiteElo "2346"]
[BlackElo "2549"]
[TimeControl "180+1"]
[EndTime "10:28:29 PDT"]
[Termination "bazar-wokzal won on time"]

1. d4 {[%clk 0:03:00.9]} 1... Nf6 {[%clk 0:02:59.2]} 2. Nf3 {[%clk 0:02:59.8]}
2... e6 {[%clk 0:02:58.9]} 3. g3 {[%clk 0:02:59]} 3... b5 {[%clk 0:02:58.4]} 4.
Bg2 {[%clk 0:02:58]} 4... Bb7 {[%clk 0:02:58.7]} 5. O-O {[%clk 0:02:57.4]} 5...
c5 {[%clk 0:02:58.8]} 6. c3 {[%clk 0:02:53]} 6... Na6 {[%clk 0:02:58.6]} 7. Nbd2
{[%clk 0:02:48.6]} 7... Be7 {[%clk 0:02:57.9]} 8. Re1 {[%clk 0:02:48.3]} 8...
O-O {[%clk 0:02:55.5]} 9. e4 {[%clk 0:02:47.4]} 9... cxd4 {[%clk 0:02:55.3]} 10.
cxd4 {[%clk 0:02:46.8]} 10... Rc8 {[%clk 0:02:55.6]} 11. a3 {[%clk 0:02:14.9]}
11... Qb6 {[%clk 0:02:54.1]} 12. e5 {[%clk 0:02:08.3]} 12... Nd5 {[%clk
0:02:53]} 13. Ne4 {[%clk 0:02:08]} 13... f5 {[%clk 0:02:39.9]} 14. exf6 {[%clk
0:01:59.6]} 14... gxf6 {[%clk 0:02:39.2]} 15. Bh6 {[%clk 0:01:52.3]} 15... Rf7
{[%clk 0:02:38.5]} 16. Nfd2 {[%clk 0:01:41.8]} 16... Kh8 {[%clk 0:02:36.6]} 17.
Qh5 {[%clk 0:01:35.3]} 17... Kg8 {[%clk 0:02:33.2]} 18. Rac1 {[%clk 0:01:29.2]}
18... Bf8 {[%clk 0:02:08.2]} 19. Nb3 {[%clk 0:00:49.5]} 19... Qd8 {[%clk
0:01:55.6]} 20. Bxf8 {[%clk 0:00:47]} 20... Qxf8 {[%clk 0:01:54.1]} 21. Nbc5
{[%clk 0:00:42.5]} 21... Nxc5 {[%clk 0:01:49.7]} 22. dxc5 {[%clk 0:00:42.3]}
22... f5 {[%clk 0:01:44.6]} 23. Nd6 {[%clk 0:00:41.9]} 23... Nf6 {[%clk
0:01:38]} 24. Qxf7+ {[%clk 0:00:37.4]} 24... Qxf7 {[%clk 0:01:38.4]} 25. Nxf7
{[%clk 0:00:36.9]} 25... Bxg2 {[%clk 0:01:38.5]} 26. Nh6+ {[%clk 0:00:36]} 26...
Kg7 {[%clk 0:01:37.8]} 27. Nxf5+ {[%clk 0:00:35.9]} 27... exf5 {[%clk 0:01:38]}
28. Kxg2 {[%clk 0:00:35.8]} 28... Kg6 {[%clk 0:01:31.2]} 29. b4 {[%clk
0:00:24.4]} 29... Rc6 {[%clk 0:01:27.9]} 30. Rcd1 {[%clk 0:00:22.9]} 30... Ra6
{[%clk 0:01:24.3]} 31. Rd3 {[%clk 0:00:20.5]} 31... Ra4 {[%clk 0:01:24.3]} 32.
f3 {[%clk 0:00:19]} 32... a5 {[%clk 0:01:23.6]} 33. Rb1 {[%clk 0:00:17.7]} 33...
axb4 {[%clk 0:01:21.8]} 34. Rxb4 {[%clk 0:00:16.3]} 34... Ra5 {[%clk 0:01:21]}
35. Rdb3 {[%clk 0:00:15.8]} 35... h5 {[%clk 0:01:15.5]} 36. Rxb5 {[%clk
0:00:15.5]} 36... Ra4 {[%clk 0:01:15.9]} 37. Rb6 {[%clk 0:00:12.3]} 37... Kf7
{[%clk 0:01:10]} 38. c6 {[%clk 0:00:11.5]} 38... dxc6 {[%clk 0:01:09.4]} 39.
Rxc6 {[%clk 0:00:11.5]} 39... Ra7 {[%clk 0:01:08.9]} 40. Rcb6 {[%clk 0:00:08.7]}
40... Ra4 {[%clk 0:01:03.8]} 41. R6b4 {[%clk 0:00:06.5]} 41... Ra5 {[%clk
0:01:02.1]} 42. h4 {[%clk 0:00:06.3]} 42... Ra8 {[%clk 0:00:59.2]} 43. Rb7+
{[%clk 0:00:05.7]} 43... Kg6 {[%clk 0:00:57.6]} 44. R7b6 {[%clk 0:00:05.8]}
44... Rc8 {[%clk 0:00:52.2]} 45. Rd3 {[%clk 0:00:05.1]} 45... Rc2+ {[%clk
0:00:51]} 46. Kf1 {[%clk 0:00:05.1]} 46... Kf7 {[%clk 0:00:49.8]} 47. Rdd6
{[%clk 0:00:03.1]} 47... Ne8 {[%clk 0:00:45.6]} 48. Rb7+ {[%clk 0:00:02.9]}
48... Kf8 {[%clk 0:00:44.9]} 49. Rd8 {[%clk 0:00:02.9]} 49... Rc3 {[%clk
0:00:42.8]} 0-1

[Event "*** Titled Tuesday Blitz"]
[Site "Chess.com"]
[Date "2020.05.12"]
[Round "3"]
[White "Manukyan_Artak"]
[Black "Rud_Makarian"]
[Result "1-0"]
[WhiteElo "2416"]
[BlackElo "2615"]
[TimeControl "180+1"]
[EndTime "10:28:30 PDT"]
[Termination "Manukyan_Artak won by resignation"]

1. e4 {[%clk 0:02:33.6]} 1... e5 {[%clk 0:02:57.3]} 2. Nf3 {[%clk 0:02:33]} 2...
Nc6 {[%clk 0:02:57.8]} 3. d4 {[%clk 0:02:33.4]} 3... exd4 {[%clk 0:02:56.8]} 4.
Nxd4 {[%clk 0:02:33.9]} 4... d6 {[%clk 0:02:56]} 5. Nxc6 {[%clk 0:02:33.8]} 5...
bxc6 {[%clk 0:02:55.7]} 6. Bc4 {[%clk 0:02:34.5]} 6... Be7 {[%clk 0:02:51.9]} 7.
O-O {[%clk 0:02:30.1]} 7... Nf6 {[%clk 0:02:50.2]} 8. Nc3 {[%clk 0:02:25.5]}
8... O-O {[%clk 0:02:48.4]} 9. Bg5 {[%clk 0:02:13.5]} 9... Nd7 {[%clk
0:02:41.4]} 10. Bxe7 {[%clk 0:02:08.7]} 10... Qxe7 {[%clk 0:02:42.3]} 11. Re1
{[%clk 0:02:08]} 11... Rb8 {[%clk 0:02:41.8]} 12. Bb3 {[%clk 0:02:03.2]} 12...
Nc5 {[%clk 0:02:41]} 13. Qd4 {[%clk 0:01:59.4]} 13... a5 {[%clk 0:02:22.4]} 14.
Re3 {[%clk 0:01:54]} 14... Rb4 {[%clk 0:02:18.7]} 15. Qd2 {[%clk 0:01:45.4]}
15... a4 {[%clk 0:02:01.5]} 16. a3 {[%clk 0:01:12.5]} 16... Rxb3 {[%clk
0:02:01.1]} 17. cxb3 {[%clk 0:01:12.8]} 17... Nxb3 {[%clk 0:02:02]} 18. Qe1
{[%clk 0:01:13.3]} 18... Nxa1 {[%clk 0:02:02.9]} 19. Qxa1 {[%clk 0:01:14.1]}
19... Be6 {[%clk 0:01:55]} 20. Nxa4 {[%clk 0:01:11]} 20... c5 {[%clk 0:01:54.7]}
21. Nc3 {[%clk 0:01:10.6]} 21... Rb8 {[%clk 0:01:52.6]} 22. h3 {[%clk
0:01:03.6]} 22... Qg5 {[%clk 0:01:35.8]} 23. a4 {[%clk 0:00:58.8]} 23... c4
{[%clk 0:01:35.5]} 24. a5 {[%clk 0:00:55.4]} 24... Ra8 {[%clk 0:01:31.1]} 25. a6
{[%clk 0:00:47.1]} 25... Qc5 {[%clk 0:01:29.2]} 26. Nd5 {[%clk 0:00:40.1]} 26...
h6 {[%clk 0:01:11.4]} 27. b4 {[%clk 0:00:19.5]} 27... Qa7 {[%clk 0:00:45.8]} 28.
Rg3 {[%clk 0:00:18.1]} 28... g6 {[%clk 0:00:38.9]} 29. Qf6 {[%clk 0:00:17.1]}
29... Bxd5 {[%clk 0:00:33.5]} 30. exd5 {[%clk 0:00:16.5]} 30... g5 {[%clk
0:00:16.8]} 31. Qxh6 {[%clk 0:00:15.8]} 31... f6 {[%clk 0:00:13.9]} 32. Qxf6
{[%clk 0:00:15.5]} 32... c5 {[%clk 0:00:12.7]} 33. Rxg5+ {[%clk 0:00:14.9]}
33... Kh7 {[%clk 0:00:13.1]} 34. Qf5+ {[%clk 0:00:12.9]} 34... Kh8 {[%clk
0:00:12.7]} 35. Qg4 {[%clk 0:00:12.4]} 35... Qh7 {[%clk 0:00:10.8]} 36. Rh5
{[%clk 0:00:12.5]} 36... c3 {[%clk 0:00:10.1]} 37. Rxh7+ {[%clk 0:00:11.6]}
37... Kxh7 {[%clk 0:00:11]} 38. Qf5+ {[%clk 0:00:11.7]} 38... Kh8 {[%clk
0:00:09.9]} 39. Qf6+ {[%clk 0:00:10.1]} 39... Kg8 {[%clk 0:00:09.8]} 40. Qxc3
{[%clk 0:00:11]} 1-0

[Event "*** Titled Tuesday Blitz"]
[Site "Chess.com"]
[Date "2020.05.12"]
[Round "3"]
[White "jonaszmb"]
[Black "The_Machine04"]
[Result "0-1"]
[WhiteElo "2508"]
[BlackElo "2321"]
[TimeControl "180+1"]
[EndTime "10:28:30 PDT"]
[Termination "The_Machine04 won by resignation"]

1. e4 {[%clk 0:03:00.9]} 1... d6 {[%clk 0:02:59.9]} 2. d4 {[%clk 0:02:59.7]}
2... Nf6 {[%clk 0:02:59.9]} 3. Nc3 {[%clk 0:02:58.5]} 3... e5 {[%clk 0:03:00.3]}
4. dxe5 {[%clk 0:02:53.6]} 4... dxe5 {[%clk 0:03:01.2]} 5. Qxd8+ {[%clk
0:02:53.8]} 5... Kxd8 {[%clk 0:03:00.9]} 6. Bg5 {[%clk 0:02:54.7]} 6... Be6
{[%clk 0:03:00.1]} 7. O-O-O+ {[%clk 0:02:50.3]} 7... Nd7 {[%clk 0:02:57.4]} 8.
Nf3 {[%clk 0:02:49]} 8... Bd6 {[%clk 0:02:55.9]} 9. Nb5 {[%clk 0:02:46.5]} 9...
Ke7 {[%clk 0:02:55.2]} 10. Nxd6 {[%clk 0:02:34.7]} 10... cxd6 {[%clk 0:02:56.1]}
11. Kb1 {[%clk 0:02:25.1]} 11... h6 {[%clk 0:02:55.8]} 12. Bxf6+ {[%clk
0:02:09.6]} 12... Nxf6 {[%clk 0:02:56.7]} 13. Bd3 {[%clk 0:02:03.7]} 13... a6
{[%clk 0:02:55.3]} 14. Rhe1 {[%clk 0:02:02.6]} 14... b5 {[%clk 0:02:53.4]} 15.
h3 {[%clk 0:01:57.2]} 15... Rhb8 {[%clk 0:02:49.4]} 16. Nd2 {[%clk 0:01:37.7]}
16... a5 {[%clk 0:02:47.7]} 17. Nf1 {[%clk 0:01:36.6]} 17... a4 {[%clk
0:02:42.8]} 18. Ne3 {[%clk 0:01:24.3]} 18... g6 {[%clk 0:02:42.4]} 19. f3 {[%clk
0:01:18.5]} 19... b4 {[%clk 0:02:39.4]} 20. Bc4 {[%clk 0:01:16.2]} 20... Ra5
{[%clk 0:02:24.8]} 21. Bxe6 {[%clk 0:01:12.9]} 21... fxe6 {[%clk 0:02:23.6]} 22.
Rxd6 {[%clk 0:01:11.1]} 22... Kxd6 {[%clk 0:02:20]} 23. Nc4+ {[%clk 0:01:10.9]}
23... Kc5 {[%clk 0:02:19.9]} 24. Nxa5 {[%clk 0:01:10.9]} 24... Rb5 {[%clk
0:02:17.7]} 25. Rd1 {[%clk 0:00:28.4]} 25... Rxa5 {[%clk 0:02:17.6]} 26. Rd8
{[%clk 0:00:28.2]} 26... Ra6 {[%clk 0:02:14.8]} 27. c3 {[%clk 0:00:20.3]} 27...
b3 {[%clk 0:02:14]} 28. axb3 {[%clk 0:00:18.4]} 28... axb3 {[%clk 0:02:14.9]}
29. Rb8 {[%clk 0:00:15.5]} 29... Rb6 {[%clk 0:02:14.4]} 30. Rc8+ {[%clk
0:00:15.8]} 30... Kd6 {[%clk 0:02:05.5]} 31. Kc1 {[%clk 0:00:15.5]} 31... Nh5
{[%clk 0:01:58.7]} 32. Rg8 {[%clk 0:00:11.7]} 32... Nf4 {[%clk 0:01:58.4]} 33.
Kd2 {[%clk 0:00:06.3]} 33... g5 {[%clk 0:01:55.1]} 34. g3 {[%clk 0:00:06.4]}
34... Nxh3 {[%clk 0:01:54.5]} 35. Rh8 {[%clk 0:00:04.4]} 35... g4 {[%clk
0:01:47.5]} 36. Rxh6 {[%clk 0:00:03.5]} 36... Ng5 {[%clk 0:01:46.2]} 37. fxg4
{[%clk 0:00:03.1]} 37... Nxe4+ {[%clk 0:01:45.8]} 38. Kd3 {[%clk 0:00:02.9]}
38... Nc5+ {[%clk 0:01:45.3]} 39. Kc4 {[%clk 0:00:02.4]} 39... Ra6 {[%clk
0:01:45.5]} 40. g5 {[%clk 0:00:02.7]} 40... Ra4+ {[%clk 0:01:45.2]} 41. Kb5
{[%clk 0:00:02.5]} 41... Rg4 {[%clk 0:01:45.4]} 42. g6 {[%clk 0:00:02.9]} 42...
Nd3 {[%clk 0:01:44.6]} 43. c4 {[%clk 0:00:02.2]} 43... Nxb2 {[%clk 0:01:42.9]}
44. c5+ {[%clk 0:00:02.6]} 44... Kd5 {[%clk 0:01:40.3]} 45. c6 {[%clk
0:00:02.3]} 45... Nc4 {[%clk 0:01:40.5]} 46. c7 {[%clk 0:00:02.4]} 46... Nd6+
{[%clk 0:01:40.3]} 47. Ka5 {[%clk 0:00:01.5]} 47... b2 {[%clk 0:01:40.5]} 48.
Rh1 {[%clk 0:00:01]} 48... Kc6 {[%clk 0:01:37.3]} 49. Rb1 {[%clk 0:00:01.9]}
49... Kxc7 {[%clk 0:01:36.6]} 50. Rxb2 {[%clk 0:00:02.3]} 50... Rxg6 {[%clk
0:01:36.4]} 51. Re2 {[%clk 0:00:03]} 51... e4 {[%clk 0:01:36.1]} 52. Kb4 {[%clk
0:00:02.2]} 52... Rxg3 {[%clk 0:01:35.3]} 53. Kc5 {[%clk 0:00:03.1]} 53... Rc3+
{[%clk 0:01:34.4]} 54. Kd4 {[%clk 0:00:03.4]} 54... Rd3+ {[%clk 0:01:32.8]} 55.
Ke5 {[%clk 0:00:03.6]} 55... Kc6 {[%clk 0:01:32.9]} 56. Kxe6 {[%clk 0:00:03.8]}
56... Kc5 {[%clk 0:01:32.9]} 57. Rc2+ {[%clk 0:00:03.7]} 57... Kb4 {[%clk
0:01:29.6]} 58. Ke5 {[%clk 0:00:03.1]} 58... Kb3 {[%clk 0:01:29.2]} 59. Rc6
{[%clk 0:00:02.5]} 59... e3 {[%clk 0:01:26.1]} 60. Rc1 {[%clk 0:00:02.3]} 60...
Kb2 {[%clk 0:01:22.6]} 61. Rh1 {[%clk 0:00:02.3]} 61... Kc3 {[%clk 0:01:22.1]}
62. Kf4 {[%clk 0:00:01.8]} 62... Nc4 {[%clk 0:01:21.8]} 63. Re1 {[%clk
0:00:01.8]} 63... Kd2 {[%clk 0:01:20.8]} 64. Rh1 {[%clk 0:00:02.4]} 64... e2
{[%clk 0:01:20.9]} 65. Rh2 {[%clk 0:00:03]} 65... Re3 {[%clk 0:01:19.1]} 66. Kg4
{[%clk 0:00:01.5]} 66... Kd1 {[%clk 0:01:18.8]} 0-1

[Event "*** Titled Tuesday Blitz"]
[Site "Chess.com"]
[Date "2020.05.12"]
[Round "3"]
[White "silverback96"]
[Black "Grandmaster2B"]
[Result "1-0"]
[WhiteElo "2243"]
[BlackElo "2486"]
[TimeControl "180+1"]
[EndTime "10:28:30 PDT"]
[Termination "silverback96 won by resignation"]

1. Nf3 {[%clk 0:03:00.9]} 1... Nf6 {[%clk 0:02:58]} 2. g3 {[%clk 0:03:00.8]}
2... c5 {[%clk 0:02:57.9]} 3. Bg2 {[%clk 0:03:00.8]} 3... Nc6 {[%clk 0:02:58.3]}
4. O-O {[%clk 0:03:01.2]} 4... d5 {[%clk 0:02:58.6]} 5. c4 {[%clk 0:03:01.4]}
5... d4 {[%clk 0:02:57.6]} 6. e3 {[%clk 0:03:01.7]} 6... Bf5 {[%clk 0:02:57.2]}
7. exd4 {[%clk 0:03:01.8]} 7... cxd4 {[%clk 0:02:58.1]} 8. Re1 {[%clk
0:03:00.5]} 8... e6 {[%clk 0:02:57.6]} 9. d3 {[%clk 0:02:59.2]} 9... Be7 {[%clk
0:02:57.1]} 10. Na3 {[%clk 0:02:59.8]} 10... O-O {[%clk 0:02:50.2]} 11. Nc2
{[%clk 0:03:00.3]} 11... a5 {[%clk 0:02:42.8]} 12. Rb1 {[%clk 0:02:59]} 12...
Qb6 {[%clk 0:02:33.5]} 13. Ne5 {[%clk 0:02:46.4]} 13... Nxe5 {[%clk 0:02:29.1]}
14. Rxe5 {[%clk 0:02:45.4]} 14... Bc5 {[%clk 0:02:06]} 15. b3 {[%clk 0:02:05.7]}
15... Nd7 {[%clk 0:01:53.4]} 16. Re1 {[%clk 0:02:05]} 16... Bd6 {[%clk
0:01:52.1]} 17. a3 {[%clk 0:02:03.6]} 17... Nc5 {[%clk 0:01:36.2]} 18. Bf1
{[%clk 0:01:52.2]} 18... e5 {[%clk 0:01:13.4]} 19. b4 {[%clk 0:01:43.8]} 19...
Na4 {[%clk 0:01:13]} 20. Bd2 {[%clk 0:01:43.5]} 20... axb4 {[%clk 0:00:46.9]}
21. axb4 {[%clk 0:01:44.4]} 21... Qc7 {[%clk 0:00:42.1]} 22. Na3 {[%clk
0:01:24.5]} 22... f6 {[%clk 0:00:21]} 23. Nb5 {[%clk 0:01:12.5]} 23... Qd7
{[%clk 0:00:21.5]} 24. Nxd6 {[%clk 0:01:12.5]} 24... Qxd6 {[%clk 0:00:22.4]} 25.
Qb3 {[%clk 0:01:08.5]} 25... Kh8 {[%clk 0:00:20.6]} 26. Ra1 {[%clk 0:01:05.7]}
26... Nb6 {[%clk 0:00:11.6]} 27. Bg2 {[%clk 0:01:05.2]} 27... Qc7 {[%clk
0:00:08.3]} 28. c5 {[%clk 0:00:50.3]} 28... Nd7 {[%clk 0:00:07.2]} 29. Qd5
{[%clk 0:00:50.8]} 29... Rab8 {[%clk 0:00:03.2]} 30. Ra3 {[%clk 0:00:44.7]}
30... Rfd8 {[%clk 0:00:02.5]} 31. Qc4 {[%clk 0:00:35.7]} 31... Nf8 {[%clk
0:00:02.4]} 32. b5 {[%clk 0:00:32.3]} 32... Ne6 {[%clk 0:00:02.2]} 33. Bb4
{[%clk 0:00:31.7]} 33... Rbc8 {[%clk 0:00:01.8]} 34. b6 {[%clk 0:00:31.4]} 34...
Qd7 {[%clk 0:00:01.7]} 35. Ra7 {[%clk 0:00:31.3]} 35... Qe8 {[%clk 0:00:01.6]}
36. Rxb7 {[%clk 0:00:30.8]} 36... Rb8 {[%clk 0:00:02.2]} 37. Rxb8 {[%clk
0:00:30.4]} 37... Rxb8 {[%clk 0:00:03.1]} 38. Ba5 {[%clk 0:00:29.6]} 38... Nd8
{[%clk 0:00:02.8]} 39. c6 {[%clk 0:00:29]} 39... Be6 {[%clk 0:00:03]} 40. c7
{[%clk 0:00:28.6]} 40... Rc8 {[%clk 0:00:01.5]} 41. cxd8=Q {[%clk 0:00:23.8]}
41... Qxd8 {[%clk 0:00:02.4]} 42. Qxe6 {[%clk 0:00:22.7]} 1-0